bitfinex-derivatives/quotes_BTCF0:USTF0_20251009
["timestamp","ask_amount","ask_price","bid_price","bid_amount"]
[1760031609969,0.75294218,120580.0,120570.0,3.13435244]
[1760031610151,0.75294218,120580.0,120570.0,0.55614462]
[1760031610349,0.75294218,120580.0,120570.0,3.38398462]
[1760031611152,1.05294218,120580.0,120570.0,3.38398462]
[1760031612048,1.30257436,120580.0,120570.0,3.13435244]
[1760031612448,1.05294218,120580.0,120570.0,3.13435244]
[1760031612643,0.44251,120580.0,120570.0,2.62638462]
[1760031612854,0.3544,120580.0,120570.0,3.38398462]
[1760031613075,0.7152,120580.0,120570.0,3.23568549]
[1760031614761,0.7152,120580.0,120570.0,2.47808549]
[1760031615050,0.4152,120590.0,120580.0,0.082891]
[1760031615248,0.4152,120590.0,120580.0,0.58215536]
[1760031615446,0.4152,120590.0,120580.0,0.082891]
[1760031616252,0.41874,120600.0,120590.0,0.0828841]
[1760031616557,0.41874,120600.0,120590.0,0.47276887]
[1760031616558,0.6608,120600.0,120590.0,0.47276887]
[1760031616859,0.6608,120600.0,120590.0,0.0828841]
[1760031616860,0.7152,120600.0,120590.0,0.0828841]
[1760031618161,0.7152,120600.0,120590.0,0.8404841]
[1760031619552,0.3,120600.0,120590.0,1.63032887]
[1760031619857,0.3608,120610.0,120600.0,0.0828772]
[1760031620059,0.6508,120610.0,120600.0,0.8404372]
[1760031621054,0.6508,120610.0,120600.0,0.0828772]
[1760031621361,0.6508,120610.0,120600.0,1.63028197]
[1760031621362,0.29,120610.0,120600.0,1.63028197]
[1760031621658,0.29,120610.0,120600.0,1.99108197]
[1760031622062,0.29,120610.0,120600.0,1.23356197]
[1760031622258,0.4152,120630.0,120610.0,0.0828694]
[1760031622460,0.7052,120630.0,120620.0,2.9105034]
[1760031623364,0.7052,120630.0,120620.0,0.0828634]
[1760031623365,1.18319477,120630.0,120620.0,0.0828634]
[1760031623560,1.18419477,120630.0,120620.0,2.9104234]
[1760031624256,0.79431,120630.0,120620.0,0.0828634]
[1760031624466,0.79431,120630.0,120620.0,2.25647705]
[1760031624661,0.3454,120630.0,120620.0,3.01391705]
[1760031625061,0.29,120630.0,120620.0,3.80380182]
[1760031625259,0.3852,120640.0,120630.0,0.0828566]
[1760031625478,0.6952,120640.0,120630.0,0.0828566]
[1760031625660,0.6952,120640.0,120630.0,3.01387025]
[1760031626061,0.6952,120640.0,120630.0,0.18643025]
[1760031626267,0.6952,120640.0,120630.0,3.01383025]
[1760031626463,0.6962,120640.0,120630.0,2.9102566]
[1760031626664,0.78431,120640.0,120630.0,0.0828566]
[1760031626863,0.78431,120640.0,120630.0,2.9102166]
[1760031627753,0.78431,120640.0,120630.0,0.0828566]
[1760031627963,0.78431,120640.0,120630.0,2.9100966]
[1760031628363,0.78431,120640.0,120630.0,2.91846172]
[1760031628866,0.78431,120640.0,120630.0,0.09122172]
[1760031629067,0.78431,120640.0,120630.0,2.91838172]
[1760031629263,1.25704447,120640.0,120630.0,0.00836512]
[1760031629468,1.17419477,120640.0,120630.0,2.9099766]
[1760031630164,0.78431,120640.0,120630.0,2.9099766]
[1760031630568,0.78431,120640.0,120630.0,2.91839324]
[1760031630962,0.78431,120640.0,120630.0,2.91827324]
[1760031632870,0.78431,120640.0,120630.0,2.91819324]
[1760031633666,0.78431,120640.0,120630.0,0.09127324]
[1760031633872,0.78431,120640.0,120630.0,2.91819324]
[1760031634470,0.78431,120640.0,120630.0,2.91815324]
[1760031634669,0.78431,120640.0,120630.0,0.09127324]
[1760031634867,0.78431,120640.0,120630.0,2.91811324]
[1760031635571,1.03368029,120640.0,120630.0,2.91811324]
[1760031636969,1.36590028,120640.0,120630.0,2.16083324]
[1760031637274,1.36590028,120640.0,120630.0,2.91807324]
[1760031637667,1.36590028,120640.0,120630.0,2.16083324]
[1760031637868,1.03368029,120640.0,120630.0,3.16740353]
[1760031638275,1.03368029,120640.0,120630.0,2.91803324]
[1760031638675,1.03368029,120640.0,120630.0,0.09127324]
[1760031638876,1.28305058,120640.0,120630.0,2.91799324]
[1760031639871,1.03368029,120640.0,120630.0,2.91799324]
[1760031640778,1.28305058,120640.0,120630.0,2.91799324]
[1760031641479,0.78431,120640.0,120630.0,2.91799324]
[1760031641678,0.78431,120640.0,120630.0,2.41016353]
[1760031641882,0.78431,120640.0,120630.0,3.16732353]
[1760031642181,0.94557029,120640.0,120630.0,2.41016353]
[1760031642375,0.94557029,120640.0,120630.0,3.16732353]
[1760031642582,1.28749058,120640.0,120630.0,2.16075324]
[1760031642880,1.37034028,120640.0,120630.0,2.91791324]
[1760031643380,1.28749058,120640.0,120630.0,2.91791324]
[1760031643574,1.28749058,120640.0,120630.0,2.91787324]
[1760031644112,1.28749058,120640.0,120620.0,2.1522971]
[1760031644113,0.14776,120630.0,120620.0,2.1522971]
[1760031644276,1.01793029,120630.0,120620.0,2.2557793]
[1760031644476,1.01793029,120630.0,120620.0,2.26425824]
[1760031644775,1.01793029,120630.0,120620.0,0.19481824]
[1760031644983,1.01793029,120630.0,120620.0,3.02137824]
[1760031645370,1.01893029,120630.0,120620.0,3.02137824]
[1760031646279,1.01893029,120630.0,120620.0,2.91789604]
[1760031646774,0.13952,120620.0,120610.0,2.32370065]
[1760031646968,1.25906058,120620.0,120610.0,3.08932537]
[1760031648572,1.00969029,120620.0,120610.0,3.08932537]
[1760031649376,1.34192408,120620.0,120610.0,0.26276537]
[1760031649577,1.34192408,120620.0,120610.0,3.08936537]
[1760031649776,1.25906058,120620.0,120610.0,3.08936537]
[1760031649974,1.00969029,120620.0,120610.0,3.33873566]
[1760031650297,0.46337,120620.0,120610.0,3.33873566]
[1760031650477,0.75233029,120630.0,120620.0,0.0828635]
[1760031650678,0.89233029,120630.0,120620.0,0.43571599]
[1760031651570,1.05233029,120630.0,120620.0,0.43571599]
[1760031651776,1.05333029,120630.0,120620.0,0.43571599]
[1760031652477,1.05333029,120630.0,120620.0,0.1863457]
[1760031653180,1.05333029,120630.0,120620.0,0.0828635]
[1760031653778,0.96638029,120630.0,120620.0,0.33223379]
[1760031653983,0.78638029,120630.0,120620.0,1.08931379]
[1760031654373,0.78638029,120630.0,120620.0,1.19279599]
[1760031654782,0.53701,120630.0,120620.0,1.19279599]
[1760031654982,0.17621,120630.0,120620.0,1.19279599]
[1760031655475,0.53701,120630.0,120620.0,0.9434257]
[1760031656183,0.62396,120630.0,120620.0,0.9434257]
[1760031656489,0.53701,120630.0,120620.0,0.9434257]
[1760031657079,0.53701,120630.0,120620.0,0.8399435]
[1760031658686,0.62396,120630.0,120620.0,0.8399435]
[1760031658879,0.26316,120630.0,120620.0,0.8399435]
[1760031659078,0.62396,120630.0,120620.0,0.8399435]
[1760031659382,0.53701,120630.0,120620.0,0.8399435]
[1760031660185,0.62396,120630.0,120620.0,0.8399435]
[1760031661484,0.53701,120630.0,120620.0,0.0828635]
[1760031661688,0.53701,120630.0,120620.0,1.17241262]
[1760031662085,0.121,120630.0,120620.0,0.0828635]
[1760031662282,0.001,120630.0,120620.0,1.93317262]
[1760031662791,0.001,120630.0,120620.0,3.64185262]
[1760031663489,0.83698912,120630.0,120620.0,2.9093435]
[1760031663685,0.83698912,120630.0,120620.0,0.0828635]
[1760031663984,0.50448,120630.0,120620.0,0.0828635]
[1760031664286,0.50348,120630.0,120620.0,0.0828635]
[1760031664487,0.50348,120630.0,120620.0,2.9092635]
[1760031665484,0.50348,120630.0,120620.0,0.18665476]
[1760031665794,0.50348,120630.0,120620.0,3.01305476]
[1760031665979,0.50348,120630.0,120620.0,0.18665476]
[1760031666185,1.11598912,120630.0,120620.0,2.25609476]
[1760031666386,1.11598912,120630.0,120620.0,2.9092635]
[1760031666587,1.11598912,120630.0,120620.0,3.01307089]
[1760031669287,1.11598912,120630.0,120620.0,2.25611089]
[1760031669482,0.49162,120630.0,120620.0,3.01303089]
[1760031669883,0.49162,120630.0,120620.0,3.27543089]
[1760031670092,0.49162,120630.0,120620.0,3.34554001]
[1760031670281,0.13082,120630.0,120620.0,3.34942001]
[1760031670486,0.3608,120640.0,120630.0,0.0828566]
[1760031670689,0.3608,120640.0,120630.0,0.41536572]
[1760031671481,0.3608,120640.0,120630.0,0.0828566]
[1760031671686,0.3608,120640.0,120630.0,3.24172572]
[1760031672185,0.50348,120640.0,120630.0,0.0828566]
[1760031672386,0.76348,120640.0,120630.0,2.1522966]
[1760031672585,0.76348,120640.0,120630.0,2.9091766]
[1760031672793,1.09598912,120640.0,120630.0,2.1522966]
[1760031672993,1.09598912,120640.0,120630.0,2.9091766]
[1760031673197,0.76348,120640.0,120630.0,2.9091766]
[1760031673687,1.09598912,120640.0,120630.0,2.9091766]
[1760031674194,1.09598912,120640.0,120630.0,0.0828566]
[1760031674492,1.09598912,120640.0,120630.0,2.9091366]
[1760031676395,1.09598912,120640.0,120630.0,2.9090966]
[1760031676592,1.09598912,120640.0,120630.0,0.0828566]
[1760031676791,1.09598912,120640.0,120630.0,2.9090566]
[1760031678189,1.09598912,120640.0,120630.0,2.1522166]
[1760031678392,1.09598912,120640.0,120630.0,2.9090566]
[1760031678594,0.76348,120640.0,120630.0,2.9090566]
[1760031679193,1.09598912,120640.0,120630.0,2.9090566]
[1760031679586,1.09598912,120640.0,120630.0,2.1522166]
[1760031679893,1.09598912,120640.0,120630.0,2.9090566]
[1760031680094,0.14268,120620.0,120610.0,0.56984415]
[1760031680398,0.50348,120620.0,120610.0,0.42168207]
[1760031680589,0.50348,120620.0,120610.0,3.58035119]
[1760031680994,0.41162,120620.0,120610.0,3.58035119]
[1760031681295,0.41162,120620.0,120610.0,3.39612828]
[1760031681489,0.41162,120620.0,120610.0,3.7286374]
[1760031681698,0.41162,120620.0,120610.0,3.4662374]
[1760031681893,0.50348,120620.0,120610.0,3.4662374]
[1760031682198,0.50348,120620.0,120610.0,2.37692828]
[1760031682496,0.77348,120620.0,120610.0,3.13372828]
[1760031682793,0.77348,120620.0,120610.0,2.98544207]
[1760031683587,0.77348,120620.0,120610.0,3.13379317]
[1760031684299,0.77348,120620.0,120610.0,2.37699317]
[1760031684499,0.77348,120620.0,120610.0,3.13379317]
[1760031685197,0.77348,120620.0,120610.0,2.98544207]
[1760031687999,1.10598912,120620.0,120610.0,2.22868207]
[1760031688198,1.10598912,120620.0,120610.0,2.22868317]
[1760031688199,1.46678912,120620.0,120610.0,2.22868317]
[1760031688501,1.46678912,120620.0,120610.0,3.05092397]
[1760031688502,1.54965262,120620.0,120610.0,3.05092397]
[1760031688702,1.54965262,120620.0,120610.0,3.13379427]
[1760031688900,1.94965262,120620.0,120610.0,3.13379427]
[1760031689094,1.94965262,120620.0,120610.0,0.30763427]
[1760031689294,1.86678912,120620.0,120610.0,2.22868317]
[1760031689502,1.53428,120620.0,120610.0,2.98544317]
[1760031689700,1.86678912,120620.0,120610.0,2.98544317]
[1760031690198,1.86678912,120620.0,120610.0,2.22868317]
[1760031690401,1.86678912,120620.0,120610.0,2.98544317]
[1760031690804,1.86678912,120620.0,120610.0,2.98540317]
[1760031692208,1.86678912,120620.0,120610.0,2.22868317]
[1760031692398,1.86678912,120620.0,120610.0,2.98540317]
[1760031693097,1.86678912,120620.0,120610.0,3.08925689]
[1760031694707,1.86678912,120620.0,120610.0,2.98540317]
[1760031695411,1.86678912,120620.0,120610.0,3.08919042]
[1760031696008,1.86678912,120620.0,120610.0,2.98540317]
[1760031696612,1.86678912,120620.0,120610.0,3.08918405]
[1760031697912,1.86678912,120620.0,120610.0,2.33246405]
[1760031698110,1.86678912,120620.0,120610.0,3.08918405]
[1760031700506,0.41268,120620.0,120610.0,2.66497317]
[1760031700817,0.49975,120630.0,120620.0,0.0828635]
[1760031701016,0.55975,120630.0,120620.0,0.41537262]
[1760031701315,0.55975,120630.0,120620.0,0.56372372]
[1760031701511,0.4208,120630.0,120620.0,0.2312146]
[1760031701718,0.3608,120640.0,120630.0,0.0828566]
[1760031701915,0.27,120640.0,120630.0,0.41536572]
[1760031702213,0.32017,120640.0,120630.0,1.32039682]
[1760031702716,0.27,120640.0,120630.0,2.08119682]
[1760031702917,0.4152,120650.0,120640.0,0.0828497]
[1760031703109,0.4452,120650.0,120640.0,0.41535882]
[1760031703423,0.36954887,120680.0,120640.0,1.92288774]
[1760031703609,0.00874887,120680.0,120670.0,0.5890628]
[1760031703813,0.00874887,120680.0,120670.0,3.0544628]
[1760031704009,0.00874887,120680.0,120670.0,3.4152228]
[1760031704216,0.41971887,120680.0,120670.0,2.06952]
[1760031704516,0.41971887,120680.0,120670.0,2.82616]
[1760031704917,0.50784887,120680.0,120670.0,2.82612]
[1760031705124,0.84035799,120680.0,120670.0,0.0828291]
[1760031705320,0.14254,120670.0,120660.0,0.0828338]
[1760031705523,0.50334,120670.0,120660.0,2.16063042]
[1760031705717,1.55584912,120670.0,120660.0,2.826]
[1760031705916,1.55584912,120670.0,120660.0,3.02057785]
[1760031706115,1.22334,120670.0,120660.0,0.19457785]
[1760031706316,1.22334,120670.0,120660.0,3.02053785]
[1760031706520,1.55584912,120670.0,120660.0,3.02053785]
[1760031706715,1.55584912,120670.0,120660.0,2.91714301]
[1760031707333,1.55584912,120670.0,120660.0,2.83422701]
[1760031707629,0.32,120670.0,120660.0,3.25381213]
[1760031707921,0.41566,120670.0,120660.0,2.26389455]
[1760031708125,0.41566,120670.0,120660.0,3.08756589]
[1760031708327,0.41566,120670.0,120660.0,2.98425105]
[1760031708530,0.41566,120670.0,120660.0,2.22745105]
[1760031708722,0.83584912,120670.0,120660.0,2.22733435]
[1760031708920,0.50334,120670.0,120660.0,2.908796]
[1760031709126,0.50334,120670.0,120660.0,2.25543084]
[1760031709330,0.50334,120670.0,120660.0,3.01219084]
[1760031709822,0.50334,120670.0,120660.0,3.01215084]
[1760031710424,0.83584912,120670.0,120660.0,0.84800082]
[1760031710632,0.50334,120670.0,120660.0,0.09132082]
[1760031710831,0.50334,120670.0,120660.0,2.07760482]
[1760031710832,1.15584912,120670.0,120660.0,2.07760482]
[1760031711034,1.57867822,120670.0,120660.0,2.8907101]
[1760031711635,1.57867822,120670.0,120660.0,2.82572]
[1760031711835,0.14254,120650.0,120640.0,0.19450273]
[1760031712132,1.19664912,120650.0,120640.0,3.02014273]
[1760031712336,1.19664912,120650.0,120640.0,2.91678789]
[1760031712559,1.48664912,120650.0,120640.0,2.91678789]
[1760031713436,1.15414,120650.0,120640.0,2.91678789]
[1760031714236,1.15414,120650.0,120640.0,2.98200082]
[1760031715537,1.15414,120650.0,120640.0,2.22540082]
[1760031715738,1.15414,120650.0,120640.0,2.98188082]
[1760031717637,1.54369731,120650.0,120640.0,0.15632412]
[1760031717841,1.54369731,120650.0,120640.0,2.22544412]
[1760031718035,1.54369731,120650.0,120640.0,2.98192412]
[1760031718234,1.54369731,120650.0,120640.0,2.22544412]
[1760031718432,1.54369731,120650.0,120640.0,2.98192412]
[1760031718632,1.15414,120650.0,120640.0,2.22544412]
[1760031718830,1.15414,120650.0,120640.0,2.98192412]
[1760031721435,1.62654021,120650.0,120640.0,0.15632412]
[1760031721642,1.62654021,120650.0,120640.0,2.97366263]
[1760031722137,2.02654021,120650.0,120640.0,0.06521293]
[1760031722339,0.04945,120640.0,120630.0,2.1520144]
[1760031722537,1.08980731,120640.0,120630.0,2.97346753]
[1760031722737,0.70025,120640.0,120630.0,2.97346753]
[1760031723340,0.70025,120640.0,120630.0,3.23586753]
[1760031724143,0.7830997,120640.0,120630.0,3.24421726]
[1760031724538,1.26372701,120640.0,120630.0,0.14782753]
[1760031724739,1.26372701,120640.0,120630.0,2.97350753]
[1760031725944,1.26372701,120640.0,120630.0,0.14782753]
[1760031726144,1.18087731,120640.0,120630.0,2.21706753]
[1760031726346,0.79132,120640.0,120630.0,2.97354753]
[1760031727343,0.79132,120640.0,120630.0,3.07694237]
[1760031729449,0.8741697,120640.0,120630.0,3.07698237]
[1760031730048,1.26372701,120640.0,120630.0,3.07698237]
[1760031730249,1.18087731,120640.0,120630.0,2.32046237]
[1760031730446,1.18087731,120640.0,120630.0,3.07698237]
[1760031730641,0.79132,120640.0,120630.0,2.32046237]
[1760031730849,0.41025,120640.0,120630.0,3.86653968]
[1760031731050,0.41025,120640.0,120630.0,3.76314484]
[1760031731350,0.41025,120640.0,120630.0,3.52193863]
[1760031732142,0.50132,120640.0,120630.0,0.21332423]
[1760031732457,1.25372701,120640.0,120630.0,3.03916423]
[1760031732648,1.25372701,120640.0,120630.0,3.14274892]
[1760031732849,1.25372701,120640.0,120630.0,0.31690892]
[1760031733151,1.65372701,120640.0,120630.0,0.16857516]
[1760031733554,0.2233766,120630.0,120620.0,0.10368329]
[1760031733853,1.70190435,120630.0,120620.0,0.72293329]
[1760031734949,0.2233835,120620.0,120610.0,0.0828702]
[1760031735154,1.28374081,120620.0,120610.0,0.8393902]
[1760031735374,1.28381372,120620.0,120610.0,0.8393902]
[1760031735548,1.39331055,120620.0,120610.0,0.8393902]
[1760031735751,1.39331055,120620.0,120610.0,0.06568651]
[1760031736053,0.1323272,120600.0,120590.0,2.1522401]
[1760031736256,1.57018293,120600.0,120590.0,2.97590934]
[1760031736554,1.65306013,120600.0,120590.0,2.98427248]
[1760031736753,1.65306013,120600.0,120590.0,2.22771248]
[1760031737053,1.65306013,120600.0,120590.0,0.24131934]
[1760031737054,1.66125293,120600.0,120590.0,0.24131934]
[1760031737352,1.66125293,120600.0,120590.0,0.99787934]
[1760031737353,1.41172586,120600.0,120590.0,0.99787934]
[1760031737853,1.41172586,120600.0,120590.0,0.99887934]
[1760031738250,1.41172586,120600.0,120590.0,0.99987934]
[1760031738750,1.74413013,120600.0,120590.0,0.99987934]
[1760031738955,1.74413013,120600.0,120590.0,0.90858934]
[1760031739155,1.74413013,120600.0,120590.0,0.91693907]
[1760031739356,1.74413013,120600.0,120590.0,0.90858934]
[1760031740256,1.74413013,120600.0,120590.0,0.91688672]
[1760031740752,1.66125293,120600.0,120590.0,0.91688672]
[1760031740964,1.66125293,120600.0,120590.0,1.00825672]
[1760031740965,1.16219879,120600.0,120590.0,1.00825672]
[1760031741250,1.41172586,120600.0,120590.0,0.25161672]
[1760031741454,1.66125293,120600.0,120590.0,0.25161672]
[1760031741660,1.74413013,120600.0,120590.0,1.00825672]
[1760031742051,1.66125293,120600.0,120590.0,1.00825672]
[1760031742256,1.74413013,120600.0,120590.0,1.00825672]
[1760031743152,1.74413013,120600.0,120590.0,0.25161672]
[1760031743451,1.41172586,120600.0,120590.0,1.00825672]
[1760031743674,1.66125293,120600.0,120590.0,1.00825672]
[1760031743956,1.74413013,120600.0,120590.0,1.00825672]
[1760031744852,1.74413013,120600.0,120590.0,0.16043924]
[1760031745058,1.74413013,120600.0,120590.0,1.00000334]
[1760031746655,1.66125293,120600.0,120590.0,0.24332334]
[1760031747057,1.66125293,120600.0,120590.0,1.00000334]
[1760031747453,1.74413013,120600.0,120590.0,1.00000334]
[1760031748253,1.74413013,120600.0,120590.0,0.24332334]
[1760031748455,1.74413013,120600.0,120590.0,0.06914924]
[1760031748648,1.74413013,120600.0,120590.0,0.82582924]
[1760031748865,1.9936572,120600.0,120590.0,0.06914924]
[1760031749052,2.3936572,120600.0,120590.0,0.06914924]
[1760031749258,2.3936572,120600.0,120590.0,0.82582924]
[1760031749754,2.3936572,120600.0,120590.0,0.90771334]
[1760031750361,2.14413013,120600.0,120590.0,0.90771334]
[1760031750954,2.14413013,120600.0,120590.0,0.90671334]
[1760031751760,2.14413013,120600.0,120590.0,0.99800334]
[1760031752457,2.14413013,120600.0,120590.0,0.99804334]
[1760031753363,2.14413013,120600.0,120590.0,0.91515924]
[1760031753758,2.14413013,120600.0,120590.0,0.99804334]
[1760031754059,2.14413013,120600.0,120590.0,0.15843924]
[1760031754275,0.2189941,120590.0,120580.0,0.082891]
[1760031754464,1.38884824,120590.0,120580.0,0.839611]
[1760031755054,1.38884824,120590.0,120580.0,0.082891]
[1760031755261,1.38884824,120590.0,120580.0,0.90571163]
[1760031755762,1.38884824,120590.0,120570.0,0.18639319]
[1760031755763,0.219001,120580.0,120570.0,0.18639319]
[1760031755965,1.38885514,120580.0,120570.0,1.02487319]
[1760031756265,1.38885514,120580.0,120570.0,0.921376]
[1760031756764,1.38885514,120580.0,120570.0,0.164656]
[1760031756965,1.38885514,120580.0,120570.0,0.921376]
[1760031757164,1.38885514,120580.0,120570.0,0.93152448]
[1760031757362,1.38885514,120580.0,120570.0,0.84976448]
[1760031757554,1.38885514,120580.0,120570.0,0.17480448]
[1760031757759,1.38885514,120580.0,120570.0,0.93156448]
[1760031758162,1.38885514,120580.0,120570.0,0.17480448]
[1760031758364,1.38885514,120580.0,120570.0,0.93152448]
[1760031758365,1.30596414,120580.0,120570.0,0.93152448]
[1760031758965,1.38885514,120580.0,120570.0,0.93152448]
[1760031759765,0.889801,120580.0,120570.0,0.93152448]
[1760031759965,1.38885514,120580.0,120570.0,0.93152448]
[1760031760168,1.38885514,120580.0,120570.0,0.9974847]
[1760031760465,1.30596414,120580.0,120570.0,0.2407647]
[1760031760665,0.49700138,120590.0,120580.0,0.164651]
[1760031760867,9.138e-05,120590.0,120580.0,1.45600514]
[1760031761064,9.138e-05,120590.0,120580.0,1.09924514]
[1760031761369,9.138e-05,120590.0,120580.0,1.95951065]
[1760031761772,0.38446377,120620.0,120580.0,1.95951065]
[1760031761773,0.66239707,120620.0,120600.0,0.2001772]
[1760031761967,0.4108,120620.0,120610.0,1.17091737]
[1760031762157,0.3608,120620.0,120610.0,3.24119737]
[1760031762362,0.3608,120620.0,120610.0,3.34470288]
[1760031762867,0.3608,120620.0,120610.0,3.34480348]
[1760031763361,0.3608,120620.0,120610.0,3.40950884]
[1760031763557,0.49691,120620.0,120610.0,0.33294177]
[1760031763762,0.49691,120620.0,120610.0,3.15990177]
[1760031763958,0.49691,120620.0,120610.0,3.16817491]
[1760031764163,0.49691,120620.0,120610.0,3.0645288]
[1760031765663,0.49691,120620.0,120610.0,0.2376088]
[1760031765863,0.80691,120620.0,120610.0,3.0644088]
[1760031766056,0.80691,120620.0,120610.0,3.0643688]
[1760031766465,0.80691,120620.0,120610.0,0.2376088]
[1760031766664,0.80691,120620.0,120610.0,3.0643688]
[1760031767279,1.27950085,120620.0,120610.0,2.9814585]
[1760031767863,1.27950085,120620.0,120610.0,3.0643288]
[1760031768068,0.8897735,120620.0,120610.0,3.0643288]
[1760031768267,0.8897735,120620.0,120610.0,0.2376088]
[1760031768479,0.8897735,120620.0,120610.0,0.7730088]
[1760031768772,1.27950085,120620.0,120610.0,0.25007147]
[1760031768975,1.27950085,120620.0,120610.0,0.22933566]
[1760031769168,1.27950085,120620.0,120610.0,0.98597566]
[1760031769365,1.19663735,120620.0,120610.0,0.98597566]
[1760031769566,1.27950085,120620.0,120610.0,0.98597566]
[1760031770583,1.27950085,120620.0,120610.0,0.22933566]
[1760031770876,0.80691,120620.0,120610.0,0.98597566]
[1760031771970,0.8897735,120620.0,120610.0,0.22933566]
[1760031772169,0.80691,120620.0,120610.0,0.98593566]
[1760031772371,0.3608,120620.0,120610.0,1.80550301]
[1760031772571,0.3608,120620.0,120610.0,1.90910912]
[1760031773274,0.3608,120620.0,120610.0,0.75250912]
[1760031773473,0.3608,120630.0,120620.0,0.2030535]
[1760031773691,0.6408,120630.0,120620.0,0.2030535]
[1760031773976,0.72271,120630.0,120620.0,0.9241135]
[1760031774281,0.6408,120630.0,120620.0,0.9241135]
[1760031774479,0.6408,120630.0,120620.0,0.1675135]
[1760031774680,0.6408,120630.0,120620.0,0.9241135]
[1760031774978,0.6408,120630.0,120620.0,1.02749554]
[1760031775779,0.6408,120630.0,120620.0,3.09733554]
[1760031775780,0.77487,120630.0,120620.0,3.09733554]
[1760031775980,0.77487,120630.0,120620.0,2.9939535]
[1760031776874,0.77487,120630.0,120620.0,3.09733554]
[1760031778278,0.77487,120630.0,120620.0,2.34073554]
[1760031778478,0.77487,120630.0,120620.0,2.9938335]
[1760031780080,0.77487,120630.0,120620.0,2.9937535]
[1760031780376,0.8577266,120630.0,120620.0,0.08465]
[1760031780677,0.05078,120620.0,120610.0,2.3206343]
[1760031780873,0.70158,120620.0,120610.0,2.97377226]
[1760031781575,1.1766812,120620.0,120610.0,0.22753566]
[1760031781783,1.5766812,120620.0,120610.0,2.2377674]
[1760031782082,1.5766812,120620.0,120610.0,2.89090536]
[1760031782275,1.2670335,120620.0,120610.0,2.89090536]
[1760031782477,1.2670335,120620.0,120610.0,2.97377566]
[1760031782777,0.78417,120620.0,120610.0,2.97377566]
[1760031783482,0.78417,120620.0,120610.0,2.3206377]
[1760031783683,0.78417,120620.0,120610.0,3.0771577]
[1760031784281,0.78417,120620.0,120610.0,2.97377566]
[1760031785481,0.78417,120620.0,120610.0,0.14757566]
[1760031785782,1.1766812,120620.0,120610.0,2.89978536]
[1760031786084,1.1766812,120620.0,120610.0,2.98265566]
[1760031786584,1.1766812,120620.0,120610.0,0.22753566]
[1760031786779,1.1766812,120620.0,120610.0,0.98405566]
[1760031787378,1.5766812,120620.0,120610.0,0.06470536]
[1760031787585,1.5766812,120620.0,120610.0,0.75652]
[1760031787791,1.5766812,120620.0,120610.0,0.85990204]
[1760031787988,1.5766812,120620.0,120610.0,0.10338204]
[1760031788191,0.2162403,120610.0,120600.0,0.10338204]
[1760031788392,1.186688,120610.0,120600.0,0.85990204]
[1760031788589,1.186688,120610.0,120600.0,0.94277924]
[1760031788795,1.186688,120610.0,120600.0,0.8393972]
[1760031789095,0.05078,120600.0,120590.0,0.45705343]
[1760031789292,1.2066949,120600.0,120590.0,0.10338204]
[1760031789592,1.2066949,120600.0,120590.0,0.8394041]
[1760031789981,0.81417,120600.0,120590.0,1.02292084]
[1760031790393,0.8970472,120600.0,120590.0,1.02292084]
[1760031790783,0.81417,120600.0,120590.0,1.02292084]
[1760031791189,0.81417,120600.0,120590.0,0.26640084]
[1760031791388,0.60417,120600.0,120590.0,1.02296084]
[1760031791586,0.60417,120600.0,120590.0,0.9204441]
[1760031791791,0.60417,120600.0,120590.0,0.92857975]
[1760031792894,0.3608,120600.0,120590.0,0.83337975]
[1760031793096,0.3608,120600.0,120590.0,1.59093975]
[1760031793292,0.49417,120600.0,120590.0,1.59089975]
[1760031793497,0.49417,120600.0,120590.0,0.83337975]
[1760031793692,0.49417,120600.0,120590.0,1.59089975]
[1760031794496,0.49417,120600.0,120590.0,0.83337975]
[1760031794700,0.49417,120600.0,120590.0,1.59153975]
[1760031795187,0.5770472,120600.0,120590.0,0.35049565]
[1760031795390,1.1866949,120600.0,120590.0,2.52390422]
[1760031795596,0.8770472,120600.0,120590.0,3.36482832]
[1760031795795,0.79417,120600.0,120590.0,2.50329975]
[1760031796000,0.79417,120600.0,120590.0,3.26137975]
[1760031797399,0.79417,120600.0,120590.0,2.99897975]
[1760031798395,0.79417,120600.0,120590.0,3.36476621]
[1760031799096,0.6608,120600.0,120590.0,3.36476621]
[1760031799296,0.71158,120600.0,120590.0,3.36476621]
[1760031800601,0.49158,120600.0,120590.0,3.36476621]
[1760031800898,0.49158,120600.0,120590.0,2.60668621]
[1760031801099,0.4408,120600.0,120590.0,3.10212621]
[1760031801303,0.5770405,120610.0,120600.0,0.1628372]
[1760031801603,1.2478405,120610.0,120600.0,0.1628372]
[1760031802203,1.2478405,120610.0,120600.0,0.83764]
[1760031802404,1.5574882,120610.0,120600.0,0.9205172]
[1760031803206,1.557488,120610.0,120600.0,0.9205172]
[1760031803404,1.16497,120610.0,120600.0,0.1628372]
[1760031803698,1.16497,120610.0,120600.0,0.9204772]
[1760031803903,1.16497,120610.0,120600.0,0.9204372]
[1760031804404,1.2478403,120610.0,120600.0,0.9204372]
[1760031804703,1.16497,120610.0,120600.0,0.9204372]
[1760031805399,1.49764876,120610.0,120600.0,0.9204372]
[1760031805601,1.49764876,120610.0,120600.0,0.1628372]
[1760031805903,1.58051906,120610.0,120600.0,0.1628372]
[1760031806100,1.58051906,120610.0,120600.0,2.9902372]
[1760031806604,1.49764876,120610.0,120600.0,2.9902372]
[1760031807197,1.16497,120610.0,120600.0,2.2328372]
[1760031807393,1.16497,120610.0,120600.0,2.9902372]
[1760031807606,1.16497,120610.0,120600.0,3.09362366]
[1760031808202,0.8016,120610.0,120600.0,3.10444242]
[1760031808400,0.8016,120610.0,120600.0,3.86172242]
[1760031811106,0.8016,120610.0,120600.0,3.52904366]
[1760031812006,0.4408,120610.0,120600.0,2.77176366]
[1760031812199,0.08,120610.0,120600.0,3.52884366]
[1760031812402,0.3608,120620.0,120610.0,0.1856603]
[1760031812706,0.6608,120620.0,120610.0,0.1856603]
[1760031813210,0.6608,120620.0,120610.0,0.25189032]
[1760031813406,0.6608,120620.0,120610.0,0.35527678]
[1760031814608,0.6608,120620.0,120610.0,0.25189032]
[1760031815212,0.74604,120620.0,120610.0,3.07849032]
[1760031815711,0.6608,120620.0,120610.0,3.07849032]
[1760031817914,0.6608,120620.0,120610.0,2.32173032]
[1760031818216,0.3608,120630.0,120620.0,0.1957335]
[1760031818515,0.6208,120630.0,120620.0,0.1957335]
[1760031819011,0.6208,120630.0,120620.0,3.0221335]
[1760031819212,0.26,120630.0,120620.0,2.2655335]
[1760031819413,0.26,120630.0,120620.0,3.0221335]
[1760031820013,0.26,120630.0,120620.0,3.33186835]
[1760031820209,0.3608,120650.0,120640.0,0.0828497]